[Event "Titled Tuesday Blitz July 11 Late 2023"]
[White "Nazari, Arad"]
[Black "brm72"]
[WhiteFideId "12577324"]
[WhiteElo "2715"]
[BlackElo "2536"]
[Result "0-1"]
[Round "5"]
[TimeControl "180+2"]
[Date "2023.07.11"]
[WhiteClock "0:00:00"]
[BlackClock "0:00:15"]
[Board "54"]

1. e4 {[%clk 0:03:00]}  c6 {[%clk 0:02:59]} 2. Nf3 {[%clk 0:03:01]}  d5 {[%clk 0:03:00]} 3. Nc3 {[%clk 0:03:01]}  dxe4 {[%clk 0:03:00]} 4. Nxe4 {[%clk 0:03:02]}  Nf6 {[%clk 0:03:01]} 5. Qe2 {[%clk 0:03:03]}  Nxe4 {[%clk 0:03:01]} 6. Qxe4 {[%clk 0:03:04]}  Nd7 {[%clk 0:03:01]} 7. Bc4 {[%clk 0:03:04]}  Nf6 {[%clk 0:03:02]} 8. Ne5 {[%clk 0:03:05]}  e6 {[%clk 0:03:03]} 9. Qe2 {[%clk 0:03:06]}  b5 {[%clk 0:03:03]} 10. Bd3 {[%clk 0:03:03]}  Qc7 {[%clk 0:03:01]} 11. a4 {[%clk 0:03:02]}  a6 {[%clk 0:02:58]} 12. axb5 {[%clk 0:02:58]}  Bd6 {[%clk 0:02:52]} 13. Nxc6 {[%clk 0:02:47]}  Bb7 {[%clk 0:02:50]} 14. b3 {[%clk 0:02:26]}  O-O {[%clk 0:02:46]} 15. Bb2 {[%clk 0:02:17]}  axb5 {[%clk 0:02:40]} 16. Rxa8 {[%clk 0:02:13]}  Rxa8 {[%clk 0:02:22]} 17. Nd4 {[%clk 0:02:12]}  Ra2 {[%clk 0:02:06]} 18. Bc1 {[%clk 0:01:36]}  Bxg2 {[%clk 0:01:52]} 19. Rg1 {[%clk 0:01:30]}  Ra1 {[%clk 0:01:50]} 20. Qd1 {[%clk 0:01:16]}  Ba3 {[%clk 0:01:49]} 21. Bxa3 {[%clk 0:01:08]}  Qe5+ {[%clk 0:01:41]} 22. Ne2 {[%clk 0:01:01]}  Rxd1+ {[%clk 0:01:37]} 23. Kxd1 {[%clk 0:01:02]}  Bf3 {[%clk 0:01:12]} 24. Rg3 {[%clk 0:00:49]}  Qa1+ {[%clk 0:01:09]} 25. Bc1 {[%clk 0:00:48]}  Bxe2+ {[%clk 0:01:08]} 26. Bxe2 {[%clk 0:00:48]}  Ne4 {[%clk 0:01:06]} 27. Rf3 {[%clk 0:00:33]}  g5 {[%clk 0:00:50]} 28. Bd3 {[%clk 0:00:20]}  Qd4 {[%clk 0:00:35]} 29. c3 {[%clk 0:00:10]}  Nxf2+ {[%clk 0:00:31]} 30. Ke2 {[%clk 0:00:10]}  Qd5 {[%clk 0:00:21]} 31. Rxf2 {[%clk 0:00:06]}  Qxb3 {[%clk 0:00:21]} 32. Rf1 {[%clk 0:00:04]}  Kg7 {[%clk 0:00:19]} 33. Ke3 {[%clk 0:00:02]}  h6 {[%clk 0:00:18]} 34. Be4 {[%clk 0:00:02]}  f5 {[%clk 0:00:18]} 35. Bd3 {[%clk 0:00:02]}  Kf6 {[%clk 0:00:19]} 36. Be2 {[%clk 0:00:02]}  f4+ {[%clk 0:00:19]} 37. Kf2 {[%clk 0:00:02]}  e5 {[%clk 0:00:19]} 38. d3 {[%clk 0:00:03]}  Qxc3 {[%clk 0:00:19]} 39. Rd1 {[%clk 0:00:03]}  Qd4+ {[%clk 0:00:19]} 40. Kf1 {[%clk 0:00:04]}  Kf5 {[%clk 0:00:19]} 41. Bd2 {[%clk 0:00:04]}  g4 {[%clk 0:00:20]} 42. Be1 {[%clk 0:00:05]}  f3 {[%clk 0:00:20]} 43. Bf2 {[%clk 0:00:05]}  fxe2+ {[%clk 0:00:20]} 44. Kxe2 {[%clk 0:00:06]}  Qf4 {[%clk 0:00:20]} 45. Bg3 {[%clk 0:00:06]}  Qf3+ {[%clk 0:00:20]} 46. Kd2 {[%clk 0:00:06]}  e4 {[%clk 0:00:19]} 47. dxe4+ {[%clk 0:00:06]}  Kxe4 {[%clk 0:00:20]} 48. Re1+ {[%clk 0:00:06]}  Kd4 {[%clk 0:00:20]} 49. Re8 {[%clk 0:00:03]}  Qc3+ {[%clk 0:00:20]} 50. Kd1 {[%clk 0:00:03]}  Qb3+ {[%clk 0:00:18]} 51. Kd2 {[%clk 0:00:03]}  Qb2+ {[%clk 0:00:19]} 52. Kd1 {[%clk 0:00:04]}  Kd3 {[%clk 0:00:19]} 53. Rd8+ {[%clk 0:00:04]}  Ke3 {[%clk 0:00:18]} 54. Re8+ {[%clk 0:00:04]}  Kf3 {[%clk 0:00:18]} 55. Rf8+ {[%clk 0:00:04]}  Kg2 {[%clk 0:00:17]} 56. Rf4 {[%clk 0:00:03]}  h5 {[%clk 0:00:16]} 57. Rf5 {[%clk 0:00:00]}  Qb1+ {[%clk 0:00:15]} 0-1


[Site "https://www.chess.com"]

[Event "Titled Tuesday Blitz July 11 Late 2023"]
[White "Srinath, Rao S.V."]
[Black "Rosen, Eric"]
[WhiteFideId "5028876"]
[BlackFideId "2032562"]
[WhiteElo "2536"]
[BlackElo "2701"]
[Result "1-0"]
[Round "5"]
[TimeControl "180+2"]
[Date "2023.07.11"]
[WhiteClock "0:00:24"]
[BlackClock "0:00:06"]
[Board "55"]

1. e4 {[%clk 0:03:00]}  e5 {[%clk 0:02:57]} 2. Nf3 {[%clk 0:03:00]}  Nf6 {[%clk 0:02:57]} 3. Nc3 {[%clk 0:02:58]}  Bc5 {[%clk 0:02:57]} 4. Bc4 {[%clk 0:02:48]}  d6 {[%clk 0:02:56]} 5. d3 {[%clk 0:02:47]}  Nc6 {[%clk 0:02:56]} 6. Na4 {[%clk 0:02:46]}  Bb6 {[%clk 0:02:53]} 7. h3 {[%clk 0:02:38]}  O-O {[%clk 0:02:53]} 8. Nxb6 {[%clk 0:02:33]}  axb6 {[%clk 0:02:53]} 9. a3 {[%clk 0:02:32]}  Be6 {[%clk 0:02:53]} 10. Bxe6 {[%clk 0:02:23]}  fxe6 {[%clk 0:02:54]} 11. O-O {[%clk 0:02:18]}  Qe8 {[%clk 0:02:54]} 12. Re1 {[%clk 0:02:15]}  Nh5 {[%clk 0:02:52]} 13. c3 {[%clk 0:02:10]}  Nf4 {[%clk 0:02:46]} 14. Bxf4 {[%clk 0:02:09]}  Rxf4 {[%clk 0:02:42]} 15. d4 {[%clk 0:02:08]}  exd4 {[%clk 0:02:40]} 16. cxd4 {[%clk 0:02:04]}  Qf7 {[%clk 0:02:40]} 17. d5 {[%clk 0:01:49]}  Ne7 {[%clk 0:02:18]} 18. Ng5 {[%clk 0:01:23]}  Qf6 {[%clk 0:02:19]} 19. Nxe6 {[%clk 0:01:23]}  Rxf2 {[%clk 0:02:17]} 20. Rf1 {[%clk 0:01:22]}  Rxf1+ {[%clk 0:02:00]} 21. Qxf1 {[%clk 0:01:23]}  Qxb2 {[%clk 0:02:00]} 22. Rc1 {[%clk 0:01:22]}  c5 {[%clk 0:01:54]} 23. Rb1 {[%clk 0:01:22]}  Qe5 {[%clk 0:01:29]} 24. Rxb6 {[%clk 0:01:14]}  Qxe4 {[%clk 0:01:07]} 25. Rxb7 {[%clk 0:01:14]}  Nf5 {[%clk 0:01:06]} 26. Qa1 {[%clk 0:00:38]}  Qe3+ {[%clk 0:00:46]} 27. Kh1 {[%clk 0:00:38]}  Qg3 {[%clk 0:00:17]} 28. Qb1 {[%clk 0:00:35]}  Rxa3 {[%clk 0:00:06]} 29. Rb8+ {[%clk 0:00:27]}  Kf7 {[%clk 0:00:06]} 30. Qxf5+ {[%clk 0:00:28]}  Ke7 {[%clk 0:00:07]} 31. Rb7+ {[%clk 0:00:25]}  Ke8 {[%clk 0:00:06]} 32. Qf7# {[%clk 0:00:24]} 1-0


[Site "https://www.chess.com"]

[Event "Titled Tuesday Blitz July 11 Late 2023"]
[White "Matinian, Nikita"]
[Black "Mattheii"]
[WhiteFideId "24129100"]
[WhiteElo "2689"]
[BlackElo "2528"]
[Result "1-0"]
[Round "5"]
[TimeControl "180+2"]
[Date "2023.07.11"]
[WhiteClock "0:00:39"]
[BlackClock "0:00:04"]
[Board "56"]

1. e4 {[%clk 0:03:00]}  c5 {[%clk 0:02:59]} 2. Nf3 {[%clk 0:03:01]}  Nc6 {[%clk 0:02:59]} 3. Bb5 {[%clk 0:03:01]}  g6 {[%clk 0:02:59]} 4. O-O {[%clk 0:03:00]}  Bg7 {[%clk 0:02:59]} 5. d3 {[%clk 0:03:00]}  e5 {[%clk 0:02:57]} 6. a3 {[%clk 0:03:00]}  Nd4 {[%clk 0:02:44]} 7. Nxd4 {[%clk 0:02:49]}  cxd4 {[%clk 0:02:43]} 8. f4 {[%clk 0:02:44]}  Ne7 {[%clk 0:02:01]} 9. fxe5 {[%clk 0:02:41]}  O-O {[%clk 0:02:01]} 10. Bf4 {[%clk 0:02:32]}  Nc6 {[%clk 0:01:55]} 11. Bxc6 {[%clk 0:02:31]}  dxc6 {[%clk 0:01:56]} 12. Nd2 {[%clk 0:02:31]}  Re8 {[%clk 0:01:54]} 13. Nc4 {[%clk 0:02:17]}  Be6 {[%clk 0:01:45]} 14. Nd6 {[%clk 0:02:17]}  Rf8 {[%clk 0:01:46]} 15. Nxb7 {[%clk 0:02:03]}  Qb6 {[%clk 0:01:46]} 16. Nd6 {[%clk 0:02:02]}  Qxb2 {[%clk 0:01:46]} 17. Qd2 {[%clk 0:01:56]}  Rab8 {[%clk 0:01:43]} 18. h4 {[%clk 0:01:44]}  h5 {[%clk 0:01:35]} 19. Qf2 {[%clk 0:01:35]}  Qc3 {[%clk 0:01:26]} 20. Qg3 {[%clk 0:01:28]}  Qxc2 {[%clk 0:01:23]} 21. Nf5 {[%clk 0:01:22]}  Rb3 {[%clk 0:00:40]} 22. Rad1 {[%clk 0:01:22]}  Bxf5 {[%clk 0:00:26]} 23. exf5 {[%clk 0:01:21]}  Rxa3 {[%clk 0:00:24]} 24. fxg6 {[%clk 0:01:09]}  fxg6 {[%clk 0:00:25]} 25. Qxg6 {[%clk 0:00:55]}  Ra2 {[%clk 0:00:07]} 26. Bh6 {[%clk 0:00:44]}  Rxf1+ {[%clk 0:00:04]} 27. Rxf1 {[%clk 0:00:43]}  Qxg2+ {[%clk 0:00:05]} 28. Qxg2 {[%clk 0:00:43]}  Rxg2+ {[%clk 0:00:06]} 29. Kxg2 {[%clk 0:00:44]}  Bxh6 {[%clk 0:00:07]} 30. Kf3 {[%clk 0:00:42]}  Kf7 {[%clk 0:00:06]} 31. Ke4+ {[%clk 0:00:42]}  Ke7 {[%clk 0:00:07]} 32. Ra1 {[%clk 0:00:41]}  Ke6 {[%clk 0:00:06]} 33. Ra6 {[%clk 0:00:39]}  Be3 {[%clk 0:00:04]} 34. Rxc6+ {[%clk 0:00:39]}  Ke7 {[%clk 0:00:04]} 35. Ra6 {[%clk 0:00:39]} 1-0


[Site "https://www.chess.com"]

[Event "Titled Tuesday Blitz July 11 Late 2023"]
[White "Adewumi, Tanitoluwa"]
[Black "Taboas Rodriguez, Daniel"]
[WhiteFideId "30966396"]
[BlackFideId "2208466"]
[WhiteElo "2654"]
[BlackElo "2506"]
[Result "0-1"]
[Round "5"]
[TimeControl "180+2"]
[Date "2023.07.11"]
[WhiteClock "0:00:25"]
[BlackClock "0:00:30"]
[Board "59"]

1. e4 {[%clk 0:02:52]}  e5 {[%clk 0:02:11]} 2. Nf3 {[%clk 0:02:50]}  Nc6 {[%clk 0:02:12]} 3. Bb5 {[%clk 0:02:49]}  Nf6 {[%clk 0:02:12]} 4. Bxc6 {[%clk 0:02:50]}  dxc6 {[%clk 0:02:12]} 5. d3 {[%clk 0:02:51]}  Bc5 {[%clk 0:02:12]} 6. Nc3 {[%clk 0:02:49]}  Qe7 {[%clk 0:02:12]} 7. Be3 {[%clk 0:02:49]}  Nd7 {[%clk 0:02:06]} 8. h3 {[%clk 0:02:45]}  Nf8 {[%clk 0:02:03]} 9. Ne2 {[%clk 0:02:39]}  f6 {[%clk 0:01:57]} 10. Qd2 {[%clk 0:02:38]}  Ne6 {[%clk 0:01:57]} 11. g4 {[%clk 0:02:38]}  Bd7 {[%clk 0:01:53]} 12. Ng3 {[%clk 0:02:38]}  g6 {[%clk 0:01:53]} 13. O-O-O {[%clk 0:02:36]}  O-O-O {[%clk 0:01:52]} 14. Qa5 {[%clk 0:02:29]}  Kb8 {[%clk 0:01:47]} 15. Kb1 {[%clk 0:02:22]}  Bb6 {[%clk 0:01:45]} 16. Bxb6 {[%clk 0:02:20]}  axb6 {[%clk 0:01:46]} 17. Qc3 {[%clk 0:02:14]}  c5 {[%clk 0:01:45]} 18. h4 {[%clk 0:02:09]}  Nd4 {[%clk 0:01:43]} 19. Nh2 {[%clk 0:02:02]}  b5 {[%clk 0:01:34]} 20. Rhf1 {[%clk 0:01:56]}  b4 {[%clk 0:01:34]} 21. Qe1 {[%clk 0:01:52]}  b6 {[%clk 0:01:27]} 22. f4 {[%clk 0:01:52]}  Kb7 {[%clk 0:01:27]} 23. g5 {[%clk 0:01:49]}  exf4 {[%clk 0:01:22]} 24. gxf6 {[%clk 0:01:25]}  Qxf6 {[%clk 0:01:23]} 25. Nh1 {[%clk 0:01:20]}  Be6 {[%clk 0:01:14]} 26. Qf2 {[%clk 0:01:05]}  Ra8 {[%clk 0:01:11]} 27. Qxf4 {[%clk 0:00:58]}  Bxa2+ {[%clk 0:01:09]} 28. Kc1 {[%clk 0:00:54]}  Ne2+ {[%clk 0:01:06]} 29. Kd2 {[%clk 0:00:54]}  Nxf4 {[%clk 0:01:07]} 30. Ng4 {[%clk 0:00:55]}  Qd6 {[%clk 0:00:55]} 31. e5 {[%clk 0:00:51]}  Qd4 {[%clk 0:00:54]} 32. Rde1 {[%clk 0:00:49]}  Ne6 {[%clk 0:00:48]} 33. Ne3 {[%clk 0:00:39]}  Qxb2 {[%clk 0:00:45]} 34. Nd1 {[%clk 0:00:39]}  Qd4 {[%clk 0:00:42]} 35. Re4 {[%clk 0:00:39]}  Qd7 {[%clk 0:00:40]} 36. Ne3 {[%clk 0:00:36]}  Bd5 {[%clk 0:00:40]} 37. Rg4 {[%clk 0:00:34]}  Rhf8 {[%clk 0:00:39]} 38. Rfg1 {[%clk 0:00:33]}  Bxh1 {[%clk 0:00:36]} 39. Rxh1 {[%clk 0:00:33]}  Rf2+ {[%clk 0:00:36]} 40. Ke1 {[%clk 0:00:34]}  Raf8 {[%clk 0:00:36]} 41. Nd1 {[%clk 0:00:32]}  Rxc2 {[%clk 0:00:33]} 42. Rh3 {[%clk 0:00:31]}  Nd4 {[%clk 0:00:32]} 43. Rhg3 {[%clk 0:00:29]}  Qf5 {[%clk 0:00:31]} 44. Ne3 {[%clk 0:00:25]}  Qf2+ {[%clk 0:00:30]} 0-1


[Site "https://www.chess.com"]

[Event "Titled Tuesday Blitz July 11 Late 2023"]
[White "Martin Barcelo, Carles"]
[Black "Ehlvest, Jaan"]
[WhiteFideId "24561444"]
[BlackFideId "4500016"]
[WhiteElo "2445"]
[BlackElo "2618"]
[Result "0-1"]
[Round "5"]
[TimeControl "180+2"]
[Date "2023.07.11"]
[WhiteClock "0:00:00"]
[BlackClock "0:00:09"]
[Board "61"]

1. e4 {[%clk 0:03:00]}  c5 {[%clk 0:02:55]} 2. Nc3 {[%clk 0:02:59]}  Nc6 {[%clk 0:02:53]} 3. Bb5 {[%clk 0:02:59]}  Nd4 {[%clk 0:02:47]} 4. Nf3 {[%clk 0:03:00]}  e6 {[%clk 0:02:42]} 5. O-O {[%clk 0:02:58]}  a6 {[%clk 0:02:41]} 6. Bd3 {[%clk 0:02:58]}  Nc6 {[%clk 0:02:38]} 7. b3 {[%clk 0:02:57]}  g6 {[%clk 0:02:36]} 8. e5 {[%clk 0:02:35]}  f5 {[%clk 0:02:14]} 9. exf6 {[%clk 0:02:25]}  Nxf6 {[%clk 0:02:13]} 10. Re1 {[%clk 0:02:25]}  Bg7 {[%clk 0:02:10]} 11. Bb2 {[%clk 0:02:26]}  O-O {[%clk 0:02:10]} 12. Qc1 {[%clk 0:02:24]}  d5 {[%clk 0:02:08]} 13. Na4 {[%clk 0:02:20]}  c4 {[%clk 0:02:00]} 14. Bf1 {[%clk 0:01:55]}  b5 {[%clk 0:01:57]} 15. Nc5 {[%clk 0:01:52]}  Qd6 {[%clk 0:01:56]} 16. d4 {[%clk 0:01:52]}  Ng4 {[%clk 0:01:19]} 17. h3 {[%clk 0:01:20]}  Rxf3 {[%clk 0:00:56]} 18. hxg4 {[%clk 0:01:20]}  Rf4 {[%clk 0:00:50]} 19. Nxe6 {[%clk 0:01:10]}  Rxg4 {[%clk 0:00:40]} 20. Nc5 {[%clk 0:00:43]}  Bf5 {[%clk 0:00:35]} 21. c3 {[%clk 0:00:24]}  Rf8 {[%clk 0:00:34]} 22. Qd2 {[%clk 0:00:20]}  Be4 {[%clk 0:00:29]} 23. Nxe4 {[%clk 0:00:17]}  dxe4 {[%clk 0:00:28]} 24. bxc4 {[%clk 0:00:17]}  Ne5 {[%clk 0:00:25]} 25. Be2 {[%clk 0:00:07]}  Rh4 {[%clk 0:00:13]} 26. g3 {[%clk 0:00:05]}  Rxf2 {[%clk 0:00:12]} 27. Kxf2 {[%clk 0:00:03]}  Ng4+ {[%clk 0:00:10]} 28. Bxg4 {[%clk 0:00:02]}  Rh2+ {[%clk 0:00:10]} 29. Ke3 {[%clk 0:00:01]}  Bh6+ {[%clk 0:00:10]} 30. Kxe4 {[%clk 0:00:00]}  Rxd2 {[%clk 0:00:09]} 0-1


[Site "https://www.chess.com"]

[Event "Titled Tuesday Blitz July 11 Late 2023"]
[White "Krzyzanowski, Marcin"]
[Black "Cooper, Aaron"]
[WhiteFideId "1132199"]
[BlackFideId "2634945"]
[WhiteElo "2780"]
[BlackElo "2250"]
[Result "1-0"]
[Round "5"]
[TimeControl "180+2"]
[Date "2023.07.11"]
[WhiteClock "0:00:15"]
[BlackClock "0:00:02"]
[Board "64"]

1. e4 {[%clk 0:02:59]}  c5 {[%clk 0:02:56]} 2. Nf3 {[%clk 0:02:59]}  d6 {[%clk 0:02:56]} 3. d4 {[%clk 0:02:58]}  cxd4 {[%clk 0:02:57]} 4. Nxd4 {[%clk 0:02:59]}  Nf6 {[%clk 0:02:57]} 5. Nc3 {[%clk 0:02:58]}  g6 {[%clk 0:02:56]} 6. Nb3 {[%clk 0:02:57]}  Nc6 {[%clk 0:02:51]} 7. Be2 {[%clk 0:02:54]}  Bg7 {[%clk 0:02:48]} 8. O-O {[%clk 0:02:53]}  O-O {[%clk 0:02:44]} 9. Re1 {[%clk 0:02:53]}  Be6 {[%clk 0:02:37]} 10. Bf1 {[%clk 0:02:49]}  Rc8 {[%clk 0:02:36]} 11. Nd5 {[%clk 0:02:37]}  Re8 {[%clk 0:02:17]} 12. c3 {[%clk 0:02:32]}  Na5 {[%clk 0:02:11]} 13. Bb5 {[%clk 0:02:19]}  Nxb3 {[%clk 0:01:58]} 14. axb3 {[%clk 0:02:18]}  a6 {[%clk 0:01:29]} 15. Nxf6+ {[%clk 0:02:04]}  Bxf6 {[%clk 0:01:28]} 16. Bxe8 {[%clk 0:02:05]}  Qxe8 {[%clk 0:01:29]} 17. Be3 {[%clk 0:02:02]}  Qc6 {[%clk 0:01:27]} 18. Bd4 {[%clk 0:02:01]}  Bg5 {[%clk 0:01:24]} 19. b4 {[%clk 0:01:56]}  Bc4 {[%clk 0:01:20]} 20. Qf3 {[%clk 0:01:51]}  Bh6 {[%clk 0:01:12]} 21. h4 {[%clk 0:01:48]}  e5 {[%clk 0:01:10]} 22. Be3 {[%clk 0:01:48]}  Bg7 {[%clk 0:01:10]} 23. Rad1 {[%clk 0:01:44]}  h5 {[%clk 0:01:07]} 24. Rd2 {[%clk 0:01:41]}  Bb3 {[%clk 0:01:06]} 25. Bg5 {[%clk 0:01:40]}  Re8 {[%clk 0:00:52]} 26. Qe3 {[%clk 0:01:28]}  d5 {[%clk 0:00:47]} 27. exd5 {[%clk 0:01:26]}  Bxd5 {[%clk 0:00:46]} 28. Qg3 {[%clk 0:01:16]}  b6 {[%clk 0:00:32]} 29. Red1 {[%clk 0:01:14]}  Be6 {[%clk 0:00:23]} 30. Rd6 {[%clk 0:01:10]}  Qc7 {[%clk 0:00:20]} 31. Qe3 {[%clk 0:01:07]}  Rb8 {[%clk 0:00:13]} 32. Rd8+ {[%clk 0:01:01]}  Rxd8 {[%clk 0:00:12]} 33. Bxd8 {[%clk 0:00:57]}  Qc4 {[%clk 0:00:10]} 34. Bxb6 {[%clk 0:00:48]}  Qg4 {[%clk 0:00:10]} 35. Rd8+ {[%clk 0:00:43]}  Kh7 {[%clk 0:00:10]} 36. Bc5 {[%clk 0:00:36]}  Qxh4 {[%clk 0:00:07]} 37. Rd1 {[%clk 0:00:31]}  Bg4 {[%clk 0:00:05]} 38. f3 {[%clk 0:00:31]}  Be6 {[%clk 0:00:05]} 39. Qe4 {[%clk 0:00:29]}  Qf6 {[%clk 0:00:02]} 40. Be3 {[%clk 0:00:27]}  Bf5 {[%clk 0:00:02]} 41. Qc4 {[%clk 0:00:23]}  Be6 {[%clk 0:00:03]} 42. Qxa6 {[%clk 0:00:22]}  h4 {[%clk 0:00:04]} 43. Qe2 {[%clk 0:00:21]}  h3 {[%clk 0:00:04]} 44. g4 {[%clk 0:00:19]}  Qh4 {[%clk 0:00:03]} 45. Qf2 {[%clk 0:00:18]}  Qf6 {[%clk 0:00:03]} 46. Qg3 {[%clk 0:00:18]}  e4 {[%clk 0:00:02]} 47. Qxh3+ {[%clk 0:00:18]}  Kg8 {[%clk 0:00:02]} 48. f4 {[%clk 0:00:18]}  Qe7 {[%clk 0:00:02]} 49. Qg3 {[%clk 0:00:16]}  f5 {[%clk 0:00:01]} 50. gxf5 {[%clk 0:00:15]}  Qf7 {[%clk 0:00:02]} 51. fxe6 {[%clk 0:00:15]}  Qxe6 {[%clk 0:00:02]} 52. Rd8+ {[%clk 0:00:15]}  Kf7 {[%clk 0:00:03]} 53. Rd1 {[%clk 0:00:14]}  Bf6 {[%clk 0:00:03]} 54. f5 {[%clk 0:00:15]}  Be7 {[%clk 0:00:02]} 55. fxe6+ {[%clk 0:00:15]} 1-0


[Site "https://www.chess.com"]

[Event "Titled Tuesday Blitz July 11 Late 2023"]
[White "Liu, Casper"]
[Black "Morefield, Jason"]
[WhiteFideId "1454153"]
[BlackFideId "30920825"]
[WhiteElo "2495"]
[BlackElo "2777"]
[Result "0-1"]
[Round "5"]
[TimeControl "180+2"]
[Date "2023.07.11"]
[WhiteClock "0:00:07"]
[BlackClock "0:00:40"]
[Board "65"]

1. d4 {[%clk 0:03:00]}  a6 {[%clk 0:03:00]} 2. Nf3 {[%clk 0:02:59]}  Nf6 {[%clk 0:02:57]} 3. Bf4 {[%clk 0:02:57]}  e6 {[%clk 0:02:54]} 4. e3 {[%clk 0:02:56]}  c5 {[%clk 0:02:54]} 5. Nbd2 {[%clk 0:02:55]}  Nc6 {[%clk 0:02:53]} 6. c3 {[%clk 0:02:55]}  b5 {[%clk 0:02:53]} 7. Bd3 {[%clk 0:02:53]}  Bb7 {[%clk 0:02:53]} 8. O-O {[%clk 0:02:54]}  Rc8 {[%clk 0:02:52]} 9. Re1 {[%clk 0:02:52]}  Be7 {[%clk 0:02:50]} 10. e4 {[%clk 0:02:53]}  cxd4 {[%clk 0:02:44]} 11. cxd4 {[%clk 0:02:54]}  Nb4 {[%clk 0:02:44]} 12. Bb1 {[%clk 0:02:49]}  d5 {[%clk 0:02:39]} 13. e5 {[%clk 0:02:38]}  Ne4 {[%clk 0:02:39]} 14. a3 {[%clk 0:02:33]}  Nxd2 {[%clk 0:02:27]} 15. Qxd2 {[%clk 0:02:34]}  Nc6 {[%clk 0:02:27]} 16. Bd3 {[%clk 0:01:52]}  Na5 {[%clk 0:02:25]} 17. Qe2 {[%clk 0:01:42]}  Qb6 {[%clk 0:02:16]} 18. b4 {[%clk 0:01:22]}  Nc4 {[%clk 0:02:05]} 19. Red1 {[%clk 0:00:32]}  a5 {[%clk 0:02:00]} 20. Bg5 {[%clk 0:00:30]}  Bxg5 {[%clk 0:01:54]} 21. Nxg5 {[%clk 0:00:30]}  h6 {[%clk 0:01:47]} 22. Qh5 {[%clk 0:00:27]}  Rc7 {[%clk 0:01:37]} 23. bxa5 {[%clk 0:00:17]}  Nxa5 {[%clk 0:01:30]} 24. Rac1 {[%clk 0:00:18]}  Nc4 {[%clk 0:01:16]} 25. a4 {[%clk 0:00:14]}  bxa4 {[%clk 0:00:59]} 26. Rb1 {[%clk 0:00:14]}  Nb2 {[%clk 0:00:54]} 27. Rxb2 {[%clk 0:00:14]}  Qxb2 {[%clk 0:00:54]} 28. Nxe6 {[%clk 0:00:14]}  Rc1 {[%clk 0:00:54]} 29. Nxg7+ {[%clk 0:00:14]}  Kf8 {[%clk 0:00:54]} 30. Nf5 {[%clk 0:00:11]}  Qd2 {[%clk 0:00:42]} 31. Be2 {[%clk 0:00:06]}  Rxd1+ {[%clk 0:00:40]} 32. Bxd1 {[%clk 0:00:07]}  Qe1# {[%clk 0:00:40]} 0-1


[Site "https://www.chess.com"]

[Event "Titled Tuesday Blitz July 11 Late 2023"]
[White "Fantastic_Power"]
[Black "Ladan, Nicholas"]
[BlackFideId "30918855"]
[WhiteElo "2735"]
[BlackElo "2487"]
[Result "1-0"]
[Round "5"]
[TimeControl "180+2"]
[Date "2023.07.11"]
[WhiteClock "0:00:26"]
[BlackClock "0:00:04"]
[Board "68"]

1. e4 {[%clk 0:02:57]}  e5 {[%clk 0:02:59]} 2. Nf3 {[%clk 0:02:57]}  Nc6 {[%clk 0:02:59]} 3. Bb5 {[%clk 0:02:58]}  a6 {[%clk 0:02:59]} 4. Ba4 {[%clk 0:02:57]}  Bc5 {[%clk 0:02:59]} 5. O-O {[%clk 0:02:56]}  Nge7 {[%clk 0:02:59]} 6. c3 {[%clk 0:02:50]}  Ba7 {[%clk 0:02:59]} 7. d4 {[%clk 0:02:49]}  Ng6 {[%clk 0:02:58]} 8. Bg5 {[%clk 0:02:46]}  f6 {[%clk 0:02:58]} 9. Be3 {[%clk 0:02:47]}  d6 {[%clk 0:02:57]} 10. Bb3 {[%clk 0:02:23]}  Na5 {[%clk 0:02:52]} 11. Bc2 {[%clk 0:02:22]}  O-O {[%clk 0:02:48]} 12. Nbd2 {[%clk 0:02:21]}  exd4 {[%clk 0:02:26]} 13. cxd4 {[%clk 0:02:20]}  f5 {[%clk 0:02:27]} 14. exf5 {[%clk 0:02:12]}  Bxf5 {[%clk 0:02:26]} 15. Ng5 {[%clk 0:01:49]}  Bxc2 {[%clk 0:02:07]} 16. Qxc2 {[%clk 0:01:50]}  Nc6 {[%clk 0:02:05]} 17. Ne6 {[%clk 0:01:47]}  Qe7 {[%clk 0:01:53]} 18. Nxf8 {[%clk 0:01:46]}  Rxf8 {[%clk 0:01:54]} 19. Qb3+ {[%clk 0:01:45]}  Kh8 {[%clk 0:01:42]} 20. Qxb7 {[%clk 0:01:43]}  Qd7 {[%clk 0:00:56]} 21. Rac1 {[%clk 0:01:08]}  Nxd4 {[%clk 0:00:39]} 22. Qxa7 {[%clk 0:00:52]}  Ne2+ {[%clk 0:00:30]} 23. Kh1 {[%clk 0:00:52]}  Nxc1 {[%clk 0:00:26]} 24. Rxc1 {[%clk 0:00:53]}  Qg4 {[%clk 0:00:25]} 25. Qxa6 {[%clk 0:00:47]}  Nh4 {[%clk 0:00:20]} 26. Qf1 {[%clk 0:00:46]}  Nf5 {[%clk 0:00:17]} 27. Qd3 {[%clk 0:00:38]}  Nh4 {[%clk 0:00:15]} 28. Rg1 {[%clk 0:00:35]}  h6 {[%clk 0:00:15]} 29. Qe4 {[%clk 0:00:30]}  Qh5 {[%clk 0:00:13]} 30. Nf3 {[%clk 0:00:28]}  Nxf3 {[%clk 0:00:03]} 31. gxf3 {[%clk 0:00:29]}  d5 {[%clk 0:00:03]} 32. Qg4 {[%clk 0:00:28]}  Qf7 {[%clk 0:00:03]} 33. Bd4 {[%clk 0:00:28]}  Qxf3+ {[%clk 0:00:03]} 34. Qxf3 {[%clk 0:00:29]}  Rxf3 {[%clk 0:00:03]} 35. Rxg7 {[%clk 0:00:28]}  Rf8 {[%clk 0:00:02]} 36. Rxc7+ {[%clk 0:00:27]}  Kg8 {[%clk 0:00:02]} 37. Rg7+ {[%clk 0:00:27]}  Kh8 {[%clk 0:00:02]} 38. Rf7+ {[%clk 0:00:27]}  Kg8 {[%clk 0:00:02]} 39. Rxf8+ {[%clk 0:00:28]}  Kh7 {[%clk 0:00:03]} 40. a4 {[%clk 0:00:29]}  h5 {[%clk 0:00:03]} 41. Rf6 {[%clk 0:00:25]}  h4 {[%clk 0:00:03]} 42. a5 {[%clk 0:00:26]}  h3 {[%clk 0:00:02]} 43. a6 {[%clk 0:00:27]}  Kg7 {[%clk 0:00:03]} 44. a7 {[%clk 0:00:28]}  Kh7 {[%clk 0:00:04]} 45. a8=Q {[%clk 0:00:29]}  Kg7 {[%clk 0:00:04]} 46. Qf8+ {[%clk 0:00:26]}  Kh7 {[%clk 0:00:04]} 47. Rh6# {[%clk 0:00:26]} 1-0


[Site "https://www.chess.com"]